bitfinex/quotes_BTCUSD_20210101
["timestamp","ask_amount","ask_price","bid_price","bid_amount"]
[1609472721726,1.26422903,29302.0,29301.0,4.05134636]
[1609472722826,1.59664564,29302.0,29301.0,4.05134636]
[1609472723329,0.94664564,29302.0,29301.0,4.05134636]
[1609472723929,0.61422903,29302.0,29301.0,4.05134636]
[1609472724134,0.60952321,29302.0,29301.0,4.05134636]
[1609472724538,0.27207603,29302.0,29301.0,4.41255236]
[1609472725130,0.13207603,29302.0,29301.0,4.41255236]
[1609472725834,0.33244545,29303.0,29301.0,4.41255236]
[1609472726032,0.33244545,29303.0,29301.0,4.05134636]
[1609472726334,0.78215699,29302.0,29301.0,4.05134636]
[1609472727032,0.13215699,29302.0,29301.0,4.41255236]
[1609472727310,0.13215699,29302.0,29301.0,4.68755236]
[1609472727510,0.33244545,29303.0,29301.0,4.68755236]
[1609472727711,0.33244545,29303.0,29301.0,4.32634636]
[1609472728609,0.33244545,29303.0,29301.0,4.05134636]
[1609472730454,0.33244545,29303.0,29301.0,4.15134636]
[1609472730654,0.3325547,29302.0,29301.0,4.15134636]
[1609472730852,0.3325547,29302.0,29301.0,4.05134636]
[1609472731055,0.3275547,29302.0,29301.0,4.41255236]
[1609472731255,0.3275547,29302.0,29301.0,4.05134636]
[1609472731459,0.6647077,29302.0,29301.0,4.05134636]
[1609472731858,0.79682576,29302.0,29301.0,4.05134636]
[1609472733380,0.45967276,29302.0,29301.0,4.05134636]
[1609472733585,0.45967276,29302.0,29301.0,4.70755236]
[1609472733784,0.3275547,29302.0,29301.0,4.51255236]
[1609472733978,0.45973867,29302.0,29301.0,4.51255236]
[1609472734177,0.45973867,29302.0,29301.0,4.77255236]
[1609472734383,0.3275547,29302.0,29301.0,4.41255236]
[1609472734779,0.3275547,29302.0,29301.0,4.05134636]
[1609472735482,0.6647077,29302.0,29301.0,4.05134636]
[1609472736184,0.99045944,29302.0,29301.0,4.05134636]
[1609472737382,0.79545944,29302.0,29301.0,4.05134636]
[1609472739708,0.79545944,29302.0,29301.0,4.05]
[1609472740513,1.74545944,29302.0,29301.0,4.05]
[1609472740714,2.07045944,29302.0,29301.0,4.05]
[1609472741811,1.12045944,29302.0,29301.0,4.05]
[1609472742660,1.12045944,29302.0,29301.0,4.05134635]
[1609472746267,2.32045944,29302.0,29301.0,4.05134635]
[1609472747368,2.32045944,29302.0,29301.0,4.03634635]
[1609472747569,1.12045944,29302.0,29301.0,4.03634635]
[1609472748379,0.79290474,29302.0,29301.0,4.03634635]
[1609472748579,0.79290474,29302.0,29301.0,4.27409121]
[1609472752280,1.39290474,29302.0,29301.0,4.27409121]
[1609472754910,0.79290474,29302.0,29301.0,4.27409121]
[1609472755320,1.59290474,29302.0,29301.0,4.27409121]
[1609472755515,0.79290474,29302.0,29301.0,4.27409121]
[1609472758181,1.79290474,29302.0,29301.0,4.27409121]
[1609472758784,0.79290474,29302.0,29301.0,4.27409121]
[1609472761609,0.46790474,29302.0,29301.0,4.26093292]
[1609472761811,0.46681296,29302.0,29301.0,4.26093292]
[1609472762018,0.13075174,29302.0,29301.0,4.36093292]
[1609472762317,0.13075174,29302.0,29301.0,5.56213892]
[1609472762914,0.13043495,29304.0,29302.0,1.316206]
[1609472763113,0.1615,29307.0,29302.0,0.9554]
[1609472763315,0.13045606,29303.0,29302.0,0.9554]
[1609472763518,0.13045606,29303.0,29302.0,1.316606]
[1609472763725,0.00147575,29303.0,29302.0,5.166606]
[1609472764218,0.2193,29315.0,29303.0,3.85]
[1609472764417,0.2193,29315.0,29312.0,0.29386418]
[1609472764619,1.336061,29314.0,29312.0,0.53427418]
[1609472764820,0.336061,29314.0,29312.0,0.53427418]
[1609472765517,0.336061,29314.0,29312.0,0.71927418]
[1609472766017,0.1316,29318.0,29313.0,2.611206]
[1609472766217,0.1316,29318.0,29317.0,0.24085017]
[1609472766419,0.467661,29318.0,29317.0,0.24085017]
[1609472766647,0.46442718,29318.0,29317.0,0.23562404]
[1609472766842,0.336061,29318.0,29317.0,0.23562404]
[1609472767642,0.41461354,29321.0,29317.0,0.23562404]
[1609472767844,0.336061,29320.0,29317.0,0.23562404]
[1609472768640,0.41461354,29321.0,29317.0,0.23562404]
[1609472769042,0.336061,29320.0,29317.0,0.23562404]
[1609472770041,0.331061,29320.0,29317.0,0.23562404]
[1609472770444,0.41461354,29321.0,29317.0,0.23562404]
[1609472770643,0.331086,29320.0,29317.0,0.23562404]
[1609472770944,0.331086,29320.0,29317.0,0.23236887]
[1609472771144,0.145,29319.0,29317.0,0.23236887]
[1609472771346,0.331086,29318.0,29317.0,0.23236887]
[1609472772047,0.981086,29318.0,29317.0,0.23236887]
[1609472772515,0.496086,29318.0,29317.0,0.23236887]
[1609472772716,0.331086,29318.0,29317.0,0.23236887]
[1609472773118,2.381086,29318.0,29317.0,0.23236887]
[1609472773624,3.564006,29318.0,29317.0,0.23236887]
[1609472773822,3.68997412,29318.0,29317.0,0.23236887]
[1609472774062,4.25997412,29318.0,29317.0,0.23236887]
[1609472774261,4.69207066,29318.0,29317.0,0.23236887]
[1609472775362,4.69207066,29318.0,29311.0,0.2955924]
[1609472775563,0.42358,29314.0,29311.0,0.2955924]
[1609472775769,4.27358,29312.0,29307.0,0.19265464]
[1609472775968,4.07358,29308.0,29307.0,0.19265464]
[1609472776166,4.71358,29308.0,29307.0,0.19265464]
[1609472776567,1.29562561,29308.0,29307.0,0.19265464]
[1609472776763,0.65562561,29308.0,29307.0,0.19265464]
[1609472776965,1.60562561,29308.0,29307.0,0.19265464]
[1609472777267,0.22358,29308.0,29307.0,0.19265464]
[1609472777663,0.34783399,29308.0,29307.0,0.19265464]
[1609472777884,0.50283399,29308.0,29307.0,0.19265464]
[1609472778083,2.90283399,29308.0,29307.0,0.19265464]
[1609472778487,0.50283399,29308.0,29307.0,0.19265464]
[1609472778892,1.15283399,29308.0,29307.0,0.19265464]
[1609472779092,0.50283399,29308.0,29307.0,0.19265464]
[1609472779289,0.34783399,29308.0,29307.0,0.19265464]
[1609472779492,0.47510476,29308.0,29307.0,0.19265464]
[1609472779890,1.92510476,29308.0,29307.0,0.19265464]
[1609472780793,2.12510476,29308.0,29307.0,0.19265464]
[1609472781193,1.92510476,29308.0,29307.0,0.19265464]
[1609472781390,2.34510476,29308.0,29307.0,0.19265464]
[1609472781994,3.52085077,29308.0,29307.0,0.19265464]
[1609472782395,3.75703017,29308.0,29307.0,0.19265464]
[1609472783195,2.65703017,29308.0,29307.0,0.19265464]
[1609472783809,2.85703017,29308.0,29307.0,0.19265464]
[1609472784011,2.42085077,29308.0,29307.0,0.19265464]
[1609472785311,2.42085077,29308.0,29302.0,0.25341588]
[1609472786022,0.08288894,29303.0,29302.0,0.25341588]
[1609472786215,0.08288894,29303.0,29302.0,0.61449888]
[1609472787314,0.29242894,29303.0,29302.0,0.61449888]
[1609472788171,0.42095221,29303.0,29302.0,0.61449888]
[1609472788970,0.33806327,29303.0,29302.0,0.61449888]
[1609472789171,0.12852327,29303.0,29302.0,0.61449888]
[1609472789874,0.25296705,29304.0,29302.0,0.61449888]
[1609472790174,0.25296705,29304.0,29303.0,0.361083]
[1609472790372,0.12439725,29305.0,29303.0,0.361083]
[1609472790772,0.12439725,29305.0,29304.0,0.361083]
[1609472790973,0.12439725,29305.0,29302.0,0.25341588]
[1609472791276,0.12439725,29305.0,29303.0,0.361083]
[1609472791571,0.12439725,29305.0,29302.0,0.25341588]
[1609472793496,0.12443955,29304.0,29302.0,0.25341588]
[1609472793698,0.12443955,29304.0,29303.0,0.361083]
[1609472793899,0.12443955,29304.0,29302.0,0.25341588]
[1609472794204,0.12443955,29304.0,29303.0,0.361083]
[1609472794704,0.12443955,29304.0,29303.0,1.277483]
[1609472795105,0.12443149,29305.0,29303.0,1.277483]
[1609472795502,0.12862337,29304.0,29303.0,1.277483]
[1609472795708,3.55294337,29304.0,29303.0,0.766083]
[1609472795908,3.77652337,29304.0,29302.0,0.25341588]
[1609472796105,3.57358,29303.0,29302.0,0.0004]
[1609472796304,3.86358,29303.0,29302.0,0.0004]
[1609472796534,4.42854543,29303.0,29302.0,0.0004]
[1609472797105,1.07854543,29303.0,29302.0,0.0004]
[1609472797309,0.85496543,29303.0,29302.0,0.361483]
[1609472797704,1.65496543,29303.0,29302.0,0.361483]
[1609472797902,1.87854543,29303.0,29302.0,0.0004]
[1609472798110,2.4188113,29303.0,29302.0,0.0004]
[1609472798520,2.54324947,29303.0,29302.0,0.0004]
[1609472798714,5.79324947,29303.0,29302.0,0.0004]
[1609472798917,3.1,29302.0,29301.0,1.00174635]
[1609472799118,6.58198302,29302.0,29301.0,1.00174635]
[1609472799325,6.94481787,29302.0,29301.0,1.00174635]
[1609472799917,6.82037628,29302.0,29301.0,1.00174635]
[1609472801817,7.18564742,29302.0,29301.0,1.00174635]
[1609472802015,7.1521793,29302.0,29301.0,1.00174635]
[1609472802217,6.82037628,29302.0,29301.0,1.00174635]
[1609472802485,5.09377628,29302.0,29301.0,1.00174635]
[1609472802689,1.79377628,29302.0,29301.0,1.00174635]
[1609472802888,0.79377628,29302.0,29301.0,1.00174635]
[1609472803088,0.35423143,29302.0,29301.0,1.00174635]
[1609472803288,0.55423143,29302.0,29301.0,1.00174635]
[1609472803689,4.10423143,29302.0,29301.0,1.00174635]
[1609472803888,3.90423143,29302.0,29301.0,1.00174635]
[1609472804490,5.21263445,29302.0,29301.0,1.00174635]
[1609472804691,5.65251389,29302.0,29301.0,6.35e-06]
[1609472804895,8.88216599,29302.0,29301.0,6.35e-06]
[1609472805098,8.71563411,29302.0,29301.0,6.35e-06]
[1609472805293,9.24781811,29302.0,29301.0,6.35e-06]
[1609472805594,10.69367779,29302.0,29301.0,6.35e-06]
[1609472805919,12.13598153,29302.0,29301.0,6.35e-06]
[1609472806516,11.13598153,29302.0,29301.0,6.35e-06]
[1609472807119,11.72186607,29302.0,29301.0,6.35e-06]
[1609472807330,0.52,29291.0,29286.0,0.0002]
[1609472807531,0.22358,29284.0,29282.0,0.0002]
[1609472807723,3.90538302,29283.0,29282.0,0.0002]
[1609472808021,4.22358,29283.0,29282.0,0.0002]
[1609472808822,4.25704812,29283.0,29282.0,0.0002]
[1609472809023,4.5909225,29283.0,29282.0,0.0002]
[1609472809621,4.55745438,29283.0,29282.0,0.0002]
[1609472811019,4.55745438,29283.0,29282.0,0.00122091]
[1609472811541,1.88582442,29283.0,29282.0,0.00122091]
[1609472811945,1.75538302,29283.0,29282.0,0.00122091]
[1609472812341,1.78885114,29283.0,29282.0,0.00122091]
[1609472812539,2.92385114,29283.0,29282.0,0.00122091]
[1609472813145,2.12385114,29283.0,29282.0,0.00122091]
[1609472813352,2.0924496,29283.0,29282.0,0.00122091]
[1609472813557,1.8688696,29283.0,29282.0,4.21230391]
[1609472813754,0.00206637,29284.0,29282.0,4.21230391]
[1609472814058,0.00206622,29289.0,29282.0,0.36230391]
[1609472814253,0.00206622,29289.0,29283.0,0.361083]
[1609472814254,1.00206622,29289.0,29283.0,0.361083]
[1609472814556,0.33180302,29288.0,29283.0,0.361083]
[1609472814748,0.2,29287.0,29283.0,0.361083]
[1609472815151,0.00206577,29290.0,29283.0,0.361083]
[1609472815347,0.00206573,29291.0,29283.0,0.361083]
[1609472815554,0.0020657,29292.0,29283.0,0.361083]
[1609472815750,0.0020657,29292.0,29282.0,0.00122091]
[1609472815953,0.18,29290.0,29282.0,0.00122091]
[1609472816158,1.20018,29289.0,29282.0,0.00122091]
[1609472816352,0.33180302,29289.0,29282.0,0.00122091]
[1609472816551,0.18,29290.0,29282.0,0.00122091]
[1609472816848,0.22358,29291.0,29282.0,0.00122091]
[1609472817052,0.22564588,29291.0,29282.0,0.00122091]
[1609472817268,0.00206588,29291.0,29283.0,0.361083]
[1609472817522,0.325,29291.0,29282.0,0.00122091]
[1609472817721,0.325,29291.0,29283.0,0.361083]
[1609472818420,0.33386855,29292.0,29283.0,0.361083]
[1609472819072,0.22358,29291.0,29282.0,0.00122091]
[1609472820075,0.36733672,29292.0,29282.0,0.00122091]
[1609472820270,0.88038302,29291.0,29282.0,0.00122091]
[1609472820570,0.33180302,29290.0,29282.0,0.00122091]
[1609472820773,0.22358,29289.0,29282.0,0.00122091]
[1609472820970,0.22358,29290.0,29282.0,0.00122091]
[1609472821174,0.3270659,29291.0,29281.0,0.00061091]
[1609472821373,0.002066,29290.0,29283.0,0.361083]
[1609472821884,0.002066,29290.0,29289.0,4.211083]
[1609472822084,0.00206584,29291.0,29289.0,4.396773]
[1609472822283,0.00206584,29295.0,29290.0,4.211083]
[1609472822473,0.00206584,29295.0,29294.0,4.211083]
[1609472823094,0.00206584,29295.0,29294.0,4.841083]
[1609472823300,0.00206606,29296.0,29294.0,4.841083]
[1609472823500,0.00206606,29296.0,29295.0,4.211083]
[1609472823694,0.00206606,29296.0,29295.0,4.434023]
[1609472824098,0.00206609,29298.0,29295.0,5.309023]
[1609472824301,0.00206609,29298.0,29297.0,3.311083]
[1609472824502,0.00206636,29300.0,29297.0,3.311083]
[1609472824705,0.00206636,29300.0,29299.0,2.011083]
[1609472824997,0.00206636,29300.0,29299.0,0.361083]
[1609472825698,0.00206653,29301.0,29299.0,0.361083]
[1609472825896,0.00206653,29301.0,29300.0,0.361083]
[1609472826305,0.22564653,29301.0,29291.0,0.4939]
[1609472826603,0.00206653,29301.0,29289.0,0.6954]
[1609472826900,0.59858,29300.0,29290.0,0.2737]
[1609472827102,0.22358,29296.0,29287.0,0.4585]
[1609472827301,0.42358,29296.0,29287.0,0.4585]
[1609472827501,0.42358,29296.0,29287.0,0.361083]
[1609472827502,0.47865812,29296.0,29287.0,0.361083]
[1609472827702,0.20206825,29295.0,29281.0,1.66711091]
[1609472827900,0.20206825,29295.0,29288.0,0.361083]
[1609472828097,0.20206825,29295.0,29282.0,0.6756]
[1609472828524,0.20206825,29295.0,29284.0,0.361083]
[1609472828525,0.00206865,29291.0,29284.0,0.361083]
[1609472829221,0.00206865,29291.0,29284.0,0.872783]
[1609472829522,0.00206904,29290.0,29284.0,0.872783]
[1609472830122,0.00206942,29289.0,29284.0,0.872783]
[1609472830725,0.00206939,29288.0,29285.0,0.361083]
[1609472831122,0.00206939,29288.0,29287.0,0.361083]
[1609472831323,0.00206936,29289.0,29287.0,0.361083]
[1609472831823,0.00206991,29288.0,29287.0,0.361083]
[1609472832855,0.2,29293.0,29287.0,0.361083]
[1609472832856,0.0062115,29289.0,29287.0,0.361083]
[1609472833052,0.0062115,29289.0,29288.0,0.361083]
[1609472833250,0.08282003,29293.0,29288.0,0.361083]
[1609472833251,0.0062117,29290.0,29288.0,0.361083]
[1609472834682,0.00621346,29289.0,29288.0,0.361083]
[1609472834879,0.00121346,29289.0,29288.0,0.361083]
[1609472836189,0.00121346,29289.0,29288.0,0.561083]
[1609472836383,0.00121346,29289.0,29288.0,2.211083]
[1609472836584,0.0020712,29289.0,29288.0,2.211083]
[1609472836988,0.00207093,29290.0,29288.0,2.211083]
[1609472837287,0.00207093,29290.0,29289.0,2.346083]
[1609472838295,0.00207086,29290.0,29289.0,2.346083]
[1609472838897,0.0020708,29291.0,29289.0,2.346083]
[1609472839096,0.0020708,29291.0,29290.0,1.911083]
[1609472839299,0.0020708,29291.0,29290.0,1.361083]
[1609472840192,0.0020708,29291.0,29290.0,2.011083]
[1609472840398,0.08283435,29296.0,29290.0,2.011083]
[1609472840596,0.07783435,29296.0,29293.0,0.361083]
[1609472840796,0.07783435,29296.0,29295.0,0.361083]
[1609472841095,0.07783435,29296.0,29294.0,1.0]
[1609472841297,0.13031016,29295.0,29294.0,1.0]
[1609472841493,0.13031016,29295.0,29294.0,1.361083]
[1609472841699,0.12904918,29298.0,29294.0,1.361083]
[1609472841997,0.12904918,29298.0,29294.0,1.0]
[1609472842400,0.12429411,29299.0,29294.0,1.0]
[1609472842597,0.22358,29298.0,29294.0,1.0]
[1609472842800,0.12910754,29297.0,29294.0,1.0]
[1609472842999,0.22358,29296.0,29294.0,1.0]
[1609472843624,0.12921404,29295.0,29294.0,1.361083]
[1609472844522,0.12439985,29297.0,29294.0,1.361083]
[1609472844725,0.12439985,29297.0,29295.0,0.361083]
[1609472845923,0.12052168,29297.0,29295.0,0.361083]
[1609472846332,0.12917177,29296.0,29295.0,0.361083]
[1609472846827,0.22358,29301.0,29294.0,1.0]
[1609472847025,0.12918368,29296.0,29294.0,1.0]
[1609472847227,0.12918368,29296.0,29295.0,0.361083]
[1609472847883,0.1291954,29301.0,29294.0,1.0]
[1609472848478,0.84345841,29303.0,29294.0,1.0]
[1609472848479,0.22358,29300.0,29294.0,1.0]
[1609472848979,0.12921219,29299.0,29295.0,0.361083]
[1609472849679,0.12921219,29299.0,29294.0,1.0]
[1609472849881,0.12921219,29299.0,29295.0,0.361083]
[1609472850182,0.12920776,29302.0,29295.0,0.586083]
[1609472850480,0.22358,29301.0,29295.0,0.225]
[1609472850922,0.12922391,29300.0,29295.0,0.225]
[1609472851285,0.22358,29299.0,29294.0,1.0]
[1609472851488,0.33199253,29303.0,29294.0,1.0]
[1609472851489,0.33199253,29303.0,29295.0,0.361083]
[1609472851683,0.12924909,29298.0,29295.0,0.361083]
[1609472851884,0.12924909,29298.0,29296.0,0.5116]
[1609472852083,1.30859253,29303.0,29296.0,0.5116]
[1609472852084,1.4378558,29303.0,29296.0,1.5116]
[1609472852285,0.60358,29302.0,29296.0,1.5116]
[1609472852484,0.12928914,29297.0,29296.0,1.5116]
[1609472853095,1.17928914,29297.0,29296.0,1.872683]
[1609472853299,1.05,29297.0,29296.0,0.872683]
[1609472853598,0.12929616,29297.0,29296.0,0.872683]
[1609472854712,0.12127584,29299.0,29296.0,0.872683]
[1609472854898,0.12127584,29299.0,29297.0,0.361083]
[1609472855097,0.33199338,29303.0,29297.0,0.361083]
[1609472855398,0.22,29302.0,29296.0,0.5116]
[1609472855598,0.22358,29301.0,29296.0,0.5116]
[1609472855796,0.22,29302.0,29296.0,0.5116]
[1609472856198,0.1291823,29300.0,29297.0,0.361083]
[1609472856497,0.12917941,29301.0,29297.0,0.361083]
[1609472856696,0.12917941,29301.0,29296.0,0.5116]
[1609472856898,0.12917893,29299.0,29297.0,0.361083]
[1609472857401,0.12915747,29298.0,29296.0,0.5116]
[1609472857598,0.12915747,29298.0,29297.0,0.361083]
[1609472857801,0.12780991,29301.0,29296.0,0.5116]
[1609472857996,0.12780991,29301.0,29297.0,0.361083]
[1609472858198,0.1278184,29298.0,29297.0,0.361083]
[1609472858629,0.1278184,29298.0,29296.0,0.5116]
[1609472858831,0.22358,29302.0,29296.0,0.5116]
[1609472859026,0.9766,29301.0,29296.0,0.5116]
[1609472859230,0.22358,29300.0,29296.0,0.5116]
[1609472859427,0.18,29299.0,29296.0,0.5116]
[1609472859632,0.18,29299.0,29291.0,0.6821]
[1609472859831,0.18,29299.0,29292.0,0.361083]
[1609472860029,0.1278233,29301.0,29292.0,0.361083]
[1609472860232,0.12780954,29299.0,29292.0,0.361083]
[1609472860933,0.45987519,29302.0,29292.0,0.361083]
[1609472861433,0.45988243,29303.0,29292.0,0.361083]
[1609472861634,0.9766,29302.0,29291.0,0.6821]
[1609472861830,0.36527114,29302.0,29291.0,0.6821]
[1609472862133,0.33180302,29301.0,29292.0,0.361083]
[1609472862332,0.12786204,29301.0,29292.0,0.361083]
[1609472862621,0.12786204,29301.0,29291.0,0.6821]
[1609472863020,0.12785686,29300.0,29291.0,0.6821]
[1609472863225,0.33213644,29302.0,29292.0,0.361083]
[1609472863226,0.33226618,29301.0,29292.0,0.361083]
[1609472863626,0.22358,29300.0,29294.0,0.5116]
[1609472863824,0.45,29299.0,29294.0,0.5116]
[1609472864070,0.22358,29298.0,29294.0,0.5116]
[1609472864266,0.32790147,29299.0,29294.0,0.5116]
[1609472864472,0.12791843,29298.0,29294.0,0.5116]
[1609472864671,0.12791843,29298.0,29295.0,0.361083]
[1609472865270,0.127947,29299.0,29295.0,0.361083]
[1609472865471,0.127947,29299.0,29294.0,0.5116]
[1609472865670,0.127947,29299.0,29295.0,0.361083]
[1609472867794,0.127947,29299.0,29294.0,0.5116]
[1609472868100,0.22358,29299.0,29294.0,0.5116]
[1609472868298,0.12799242,29298.0,29294.0,0.5116]
[1609472868499,0.12299242,29298.0,29294.0,0.5116]
[1609472868699,0.2,29299.0,29294.0,0.5116]
[1609472868700,0.12789773,29297.0,29294.0,0.5116]
[1609472869002,0.12789773,29297.0,29295.0,0.361083]
[1609472869399,0.12789959,29298.0,29295.0,0.361083]
[1609472869902,0.12790631,29299.0,29294.0,0.5116]
[1609472870303,0.12790812,29297.0,29294.0,0.5116]
[1609472870606,0.46021898,29300.0,29295.0,0.361083]
[1609472870802,0.63521898,29300.0,29294.0,4.5116]
[1609472871001,0.63521898,29300.0,29295.0,0.361083]
[1609472871203,0.63521898,29300.0,29294.0,4.5116]
[1609472871204,0.12791735,29299.0,29294.0,4.5116]
[1609472871402,0.12791735,29299.0,29295.0,0.361083]
[1609472872701,0.46041257,29299.0,29295.0,0.361083]
[1609472872903,0.33249522,29299.0,29295.0,0.361083]
[1609472873523,0.33249522,29299.0,29294.0,4.5116]
[1609472873722,0.33249522,29299.0,29295.0,0.361083]
[1609472874425,0.46045768,29299.0,29295.0,0.361083]
[1609472874623,0.83323168,29298.0,29295.0,0.361083]
[1609472875223,1.16584106,29298.0,29295.0,0.361083]
[1609472875926,0.12796782,29297.0,29295.0,0.361083]
[1609472887112,0.45064838,29297.0,29295.0,0.361083]
[1609472888111,0.11796782,29297.0,29295.0,0.361083]
[1609472889029,0.45068332,29297.0,29295.0,0.361083]
[1609472889227,0.22,29296.0,29295.0,0.361083]
[1609472889427,0.12783834,29296.0,29295.0,0.361083]
[1609472890429,0.46055747,29297.0,29295.0,0.461083]
[1609472891029,0.12784558,29296.0,29295.0,0.461083]
[1609472891329,0.12784558,29296.0,29295.0,0.361083]
[1609472891633,0.46055785,29297.0,29296.0,0.716083]
[1609472892025,0.3327155,29297.0,29296.0,0.716083]
[1609472892428,0.46056627,29297.0,29296.0,0.716083]
[1609472892701,0.46056627,29297.0,29296.0,3.256083]
[1609472892996,0.46056627,29297.0,29296.0,3.495703]
[1609472893399,0.12785077,29297.0,29296.0,3.495703]
[1609472893595,0.12785077,29297.0,29296.0,6.322703]
[1609472894399,0.12785077,29297.0,29296.0,5.172703]
[1609472894592,0.12785077,29297.0,29296.0,5.092703]
[1609472894898,0.83323168,29298.0,29296.0,5.092703]
[1609472895094,0.83323168,29298.0,29297.0,5.3882045]
[1609472896599,0.83737981,29298.0,29297.0,5.3882045]
[1609472897002,0.83945336,29298.0,29297.0,5.3882045]
[1609472897200,0.83237981,29298.0,29297.0,5.3882045]
[1609472897812,0.83030524,29298.0,29297.0,5.3882045]
[1609472899417,0.83030524,29298.0,29297.0,4.806083]
[1609472900119,0.82823168,29298.0,29297.0,1.356083]
[1609472900326,0.82823168,29298.0,29297.0,1.361083]
[1609472900517,0.83030443,29298.0,29297.0,4.211083]
[1609472901418,0.83030443,29298.0,29297.0,5.046083]
[1609472901820,0.82823168,29298.0,29297.0,5.046083]
[1609472909131,1.68e-06,29298.0,29297.0,5.046083]
[1609472909331,7.79e-06,29300.0,29299.0,0.95389442]
[1609472909530,7.79e-06,29300.0,29299.0,2.55389442]
[1609472909729,0.0016,29312.0,29300.0,0.00345614]
[1609472909930,0.0016,29312.0,29304.0,0.361083]
[1609472910136,0.12737575,29311.0,29308.0,0.361083]
[1609472910329,0.12737575,29311.0,29310.0,4.211083]
[1609472910527,0.12737575,29311.0,29310.0,5.103843]
[1609472913464,0.12237575,29311.0,29310.0,1.253843]
[1609472913663,0.11737575,29311.0,29310.0,1.623843]
[1609472914364,0.8788,29312.0,29310.0,1.623843]
[1609472914561,0.8788,29312.0,29311.0,1.871083]
[1609472914789,0.8788,29312.0,29311.0,0.621083]
[1609472915491,0.8788,29312.0,29311.0,1.771083]
[1609472915691,0.8738,29312.0,29311.0,1.771083]
[1609472915889,0.8738,29312.0,29311.0,0.621083]
[1609472916090,1.0010087,29312.0,29311.0,0.621083]
[1609472917393,0.1288087,29312.0,29311.0,0.621083]
[1609472917793,0.0016,29312.0,29311.0,0.621083]
[1609472918293,0.0016,29312.0,29311.0,0.361083]
[1609472918492,0.0016,29312.0,29311.0,1.511083]
[1609472918894,0.0016,29312.0,29311.0,0.361083]
[1609472919295,0.0016,29312.0,29311.0,1.561083]
[1609472919695,0.0016,29312.0,29311.0,0.621083]
[1609472919896,0.0016,29312.0,29311.0,0.361083]
[1609472920416,0.00300001,29314.0,29312.0,0.75]
[1609472920417,0.00100002,29314.0,29312.0,0.75]
[1609472920618,0.00100002,29314.0,29313.0,0.711083]
[1609472921015,0.00220001,29316.0,29313.0,0.711083]
[1609472921221,1.83840006,29319.0,29313.0,0.711083]
[1609472921520,1.83840006,29319.0,29315.0,0.361083]
[1609472921918,0.12715348,29318.0,29315.0,0.361083]
[1609472923560,0.12715348,29318.0,29316.0,0.5112]
[1609472923761,0.12715348,29318.0,29317.0,0.361083]
[1609472923957,1.10375348,29318.0,29317.0,0.361083]
[1609472924707,1.09375348,29318.0,29317.0,0.361083]
[1609472925005,1.30875348,29318.0,29317.0,0.361083]
[1609472925204,1.30875348,29318.0,29316.0,0.5112]
[1609472925606,0.33215348,29318.0,29317.0,0.361083]
[1609472925808,1.1916,29318.0,29317.0,0.361083]
[1609472926207,1.31859164,29318.0,29316.0,0.5112]
[1609472926611,0.48699001,29317.0,29316.0,0.5112]
[1609472927009,0.12699001,29317.0,29316.0,0.872283]
[1609472927710,1.10359001,29317.0,29316.0,0.872283]
[1609472927920,0.12690619,29318.0,29316.0,0.5112]
[1609472928218,0.9766,29317.0,29316.0,0.5112]
[1609472928521,1.10351285,29317.0,29316.0,0.5112]
[1609472928818,1.10351285,29317.0,29316.0,0.872283]
[1609472928819,1.47351285,29317.0,29316.0,0.872283]
[1609472929017,0.49691285,29317.0,29316.0,0.872283]
[1609472929416,1.47351285,29317.0,29316.0,0.872283]
[1609472929617,0.49691285,29317.0,29316.0,0.872283]
[1609472930617,0.37,29317.0,29316.0,0.872283]
[1609472931020,0.17,29317.0,29316.0,0.872283]
[1609472931218,1.45,29317.0,29316.0,0.872283]
[1609472931424,1.77691875,29317.0,29316.0,0.5112]
[1609472932121,2.00049875,29317.0,29316.0,0.5112]
[1609472932323,0.55049875,29317.0,29316.0,0.5112]
[1609472932523,0.32691875,29317.0,29316.0,0.5112]
[1609472933223,1.32691875,29317.0,29316.0,0.5112]
[1609472933772,1.55049875,29317.0,29316.0,0.5112]
[1609472933969,1.83549875,29317.0,29316.0,0.5112]
[1609472934273,1.63549875,29317.0,29316.0,0.5112]
[1609472934469,0.63549875,29317.0,29316.0,0.5112]
[1609472935273,2.31209875,29317.0,29316.0,0.5112]
[1609472935475,2.51209875,29317.0,29316.0,0.5112]
[1609472935676,2.51209875,29317.0,29306.0,0.6705]
[1609472935878,2.12364812,29316.0,29308.0,0.2864]
[1609472936181,0.42358,29314.0,29308.0,0.2864]
[1609472936379,0.42358,29314.0,29305.0,1.8273]
[1609472936680,1.4935391,29313.0,29301.0,0.8521]
[1609472936881,0.42358,29312.0,29302.0,0.6661]
[1609472937078,1.33701014,29312.0,29302.0,0.6661]
[1609472937300,0.285,29310.0,29302.0,0.6661]
[1609472937600,1.73518,29309.0,29301.0,1.8521]
[1609472937812,1.4616,29308.0,29301.0,1.8521]
[1609472938002,1.40018,29307.0,29301.0,1.8521]
[1609472938204,1.1766,29307.0,29301.0,1.8521]
[1609472938407,0.27,29306.0,29300.0,0.5115]
[1609472938604,0.26,29305.0,29301.0,0.361083]
[1609472938803,0.38700308,29305.0,29301.0,0.361083]
[1609472939002,0.12700308,29305.0,29301.0,0.361083]
[1609472939420,0.12704831,29304.0,29301.0,0.361083]
[1609472940023,0.12706239,29305.0,29301.0,0.361083]
[1609472940423,0.12708144,29308.0,29304.0,1.811083]
[1609472940622,0.12708144,29308.0,29305.0,0.27]
[1609472940824,0.12708144,29308.0,29306.0,0.361083]
[1609472941723,0.22358,29307.0,29299.0,0.58726306]
[1609472941924,0.32708144,29308.0,29304.0,0.5114]
[1609472942123,0.22358,29307.0,29299.0,0.475]
[1609472942322,0.9766,29306.0,29299.0,0.361083]
[1609472942521,1.30332602,29307.0,29299.0,0.361083]
[1609472942720,0.12672602,29307.0,29299.0,0.361083]
[1609472942941,0.12667893,29305.0,29299.0,0.361083]
[1609472943242,0.12667059,29306.0,29302.0,0.5114]
[1609472943443,0.12666526,29304.0,29302.0,0.5114]
[1609472943740,0.32665851,29307.0,29302.0,0.5114]
[1609472943940,0.12665851,29307.0,29303.0,0.361083]
[1609472944343,0.37417,29310.0,29302.0,0.5114]
[1609472944543,0.64299001,29313.0,29302.0,0.5114]
[1609472944544,0.12666124,29309.0,29302.0,0.5114]
[1609472944739,0.12666124,29309.0,29303.0,0.361083]